fUST/lending_fUST_20240604
["ID","MTS","AMOUNT","RATE_DAILY","PERIOD"]
[328523667,1717486245344,-16398.09626635,0.00022088,3]
[328523668,1717486245353,-11490.88,0.00022187,2]
[328523670,1717486245364,-577.19417035,0.00022188,2]
[328523672,1717486245373,-11490.88,0.00022188,2]
[328523675,1717486245382,-11490.88,0.00022188,2]
[328523677,1717486245392,-40950.29181628,0.00022189,2]
[328523678,1717486245403,-220.01437983,0.00022189,2]
[328523680,1717486245412,-311.00395182,0.00022189,10]
[328523682,1717486245422,-298.26724949,0.00022189,2]
[328523684,1717486245431,-1280.0976559,0.00022189,2]
[328523686,1717486245441,-231.92738547,0.00022189,2]
[328523688,1717486245450,-1153.75711423,0.00022189,2]
[328523690,1717486245459,-216.01852232,0.00022189,2]
[328523693,1717486245469,-155.50264241,0.00022189,2]
[328523694,1717486245478,-1456.2924712,0.00022189,10]
[328523696,1717486245488,-6808.85600104,0.00022189,2]
[328523698,1717486245497,-285.73060772,0.00022189,2]
[328523700,1717486245507,-155.76034483,0.00022189,2]
[328523702,1717486245516,-252.26252932,0.00022189,2]
[328523704,1717486245526,-156.30723762,0.00022189,2]
[328523707,1717486245536,-304.55134085,0.00022189,2]
[328523709,1717486245546,-658.48926497,0.00022189,2]
[328523711,1717486245555,-524.23357601,0.00022189,2]
[328523713,1717486245564,-155.91398455,0.00022189,2]
[328523715,1717486245574,-697.03047749,0.00022189,2]
[328523717,1717486245583,-18405.37337916,0.00022189,2]
[328523719,1717486245593,-474.37601435,0.00022189,2]
[328523722,1717486245603,-1347.31126312,0.00022189,2]
[328523725,1717486245612,-1506.14944795,0.00022189,2]
[328523727,1717486245622,-318.85130828,0.00022189,2]
[328523729,1717486245631,-158.23005886,0.00022189,2]
[328523732,1717486245641,-234.90836095,0.00022189,2]
[328523733,1717486245651,-281.79040596,0.00022189,2]
[328523734,1717486245661,-534.11578173,0.00022189,2]
[328523735,1717486245674,-206.13169526,0.00022189,2]
[328523736,1717486245684,-156.00964846,0.00022189,2]
[328523737,1717486245693,-517.25265735,0.00022189,2]
[328523738,1717486245702,-552.92484794,0.00022189,2]
[328523739,1717486245711,-239.5370714,0.00022189,2]
[328523740,1717486245721,-263.06776292,0.00022189,2]
[328523741,1717486245730,-1325.62974666,0.00022189,2]
[328523742,1717486245739,-251.88414973,0.00022189,2]
[328523743,1717486245748,-194.8022931,0.00022189,2]
[328523744,1717486245758,-267.91783596,0.00022189,7]
[328523745,1717486245767,-11490.88,0.00022189,2]
[328523746,1717486245776,-1912.53258889,0.0002219,2]
[328523747,1717486245785,-11490.88,0.0002219,2]
[328523748,1717486245794,-11490.88,0.0002219,2]
[328523749,1717486245803,-11490.88,0.0002219,2]
[328523750,1717486245812,-11490.88,0.0002219,2]
[328523751,1717486245822,-11490.88,0.0002219,2]
[328523752,1717486245832,-124279.52885602,0.00022191,2]
[328523753,1717486245841,-9218.00308043,0.00022191,2]
[328523754,1717486245884,-0.01038971,0.00022191,2]
[328523767,1717486246280,-3624.51348659,0.00022191,2]
[328523769,1717486246290,-535.87944252,0.00022191,2]
[328523771,1717486246299,-500.0,0.00022191,2]
[328523773,1717486246308,-480.71171222,0.00022191,2]
[328523794,1717486247194,-19.28828778,0.00022191,2]
[328523796,1717486247204,-301.3284045,0.00022191,2]
[328523798,1717486247213,-500.0,0.00022191,2]
[328523800,1717486247222,-500.0,0.00022191,2]
[328523802,1717486247232,-154.61385957,0.00022191,2]
[328523912,1717486248803,190.02965484,0.00015,2]
[328523916,1717486248828,738.29647432,0.00015,2]
[328524111,1717486262196,154.9690062,9.999e-05,2]
[328524112,1717486271604,154.9690062,9.999e-05,2]
[328524113,1717486281733,154.9690062,9.999e-05,2]
[328524114,1717486282363,926.63597867,9.999e-05,2]
[328524115,1717486290981,154.9690062,9.999e-05,2]
[328524116,1717486322760,154.9690062,0.00015,2]
[328524117,1717486371277,411.23690711,9.999e-05,2]
[328524118,1717486394904,151.00172061,9.9e-05,2]
[328524119,1717486410845,285.64268325,9.999e-05,2]
[328524120,1717486547820,23997.14968283,0.00015877,2]
[328524121,1717486547845,902.85031717,0.00015877,2]
[328524187,1717487242197,-154.9690062,0.00018556,2]
[328524188,1717487242216,-1589.36328591,0.00018557,2]
[328524192,1717487355887,273.37336231,9.9e-05,2]
[328524193,1717487363813,273.37336231,9.9e-05,2]
[328524196,1717487379779,154.9690062,9.9e-05,2]
[328524197,1717487379803,118.40435611,9.9e-05,2]
[328524201,1717487411280,155.00231481,0.000157,2]
[328524202,1717487411733,155.00231481,0.000157,2]
[328524203,1717487412190,155.00231481,0.000157,2]
[328524204,1717487412625,155.00231481,0.000157,2]
[328524205,1717487413074,155.00231481,0.000157,2]
[328524206,1717487413831,155.00231481,0.000157,2]
[328524207,1717487414293,155.00231481,0.000157,2]
[328524208,1717487414800,155.00231481,0.000157,2]
[328524209,1717487415870,155.00231481,0.000157,2]
[328524210,1717487416940,155.00231481,0.000157,2]
[328524211,1717487417959,155.00231481,0.000157,2]
[328524212,1717487418408,155.00231481,0.000157,2]
[328524213,1717487418857,155.00231481,0.000157,2]
[328524214,1717487419294,155.00231481,0.000157,2]
[328524215,1717487419729,155.00231,0.000157,2]
[328524226,1717487432106,-721.70560726,0.0001855,2]
[328524227,1717487432119,-685.80898577,0.00018551,2]
[328524228,1717487432128,-1904.43006571,0.00018552,2]
[328524229,1717487432138,-24900.0,0.00018562,2]
[328524230,1717487432148,-400.39273306,0.000189,2]
[328524231,1717487432160,-171.527899,0.00019178,2]
[328524232,1717487432169,-190.02965484,0.00019899,2]
[328524234,1717487432178,-1434.78227944,0.0002,2]
[328524235,1717487432200,-11407.74467729,0.0002,2]
[328524236,1717487432209,-46878.79347068,0.0002,2]
[328524237,1717487432219,-176.12988631,0.000209,2]
[328524238,1717487432229,-5880.09222631,0.00020999,2]
[328524239,1717487432239,-3985.31374501,0.00021,2]
[328524240,1717487432248,-176.12988631,0.00021403,2]
[328524241,1717487432257,-16322.90074478,0.00021696,2]
[328524242,1717487432267,-6324.15722724,0.00021816,2]
[328524243,1717487432276,-154.265204,0.0002189,2]
[328524244,1717487432285,-176.12988631,0.00021907,2]
[328524245,1717487432294,-157.3159643,0.00021915,2]
[328524246,1717487432304,-1713.990281,0.00021916,2]
[328524247,1717487432313,-206.99184504,0.00021916,2]
[328524248,1717487432322,-365.3688013,0.00021916,2]
[328524249,1717487432332,-500.0,0.00021916,2]
[328524250,1717487432341,-592.83822506,0.00021916,2]
[328524251,1717487432350,-234.59709092,0.00021916,2]
[328524252,1717487432360,-500.0,0.00021916,2]
[328524253,1717487432371,-500.0,0.00021916,2]
[328524254,1717487432380,-500.0,0.00021916,2]
[328524255,1717487432390,-23899.88800351,0.00021917,7]
[328524256,1717487432401,-514.03514568,0.00021917,2]
[328524257,1717487432411,-500.0,0.00021917,2]
[328524258,1717487432420,-500.0,0.00021917,2]
[328524259,1717487432430,-500.0,0.00021917,2]
[328524261,1717487432439,-523.74,0.00021917,2]
[328524263,1717487432449,-500.0,0.00021917,2]
[328524266,1717487432458,-504.61337828,0.00021917,2]
[328524268,1717487432468,-500.0,0.00021917,2]
[328524270,1717487432477,-500.0,0.00021917,2]
[328524272,1717487432486,-502.75916685,0.00021917,2]
[328524274,1717487432496,-514.39364465,0.00021917,2]
[328524276,1717487432505,-500.0,0.00021917,2]
[328524278,1717487432515,-500.0,0.00021917,2]
[328524280,1717487432524,-500.0,0.00021917,2]
[328524282,1717487432534,-500.0,0.00021917,2]
[328524284,1717487432543,-500.0,0.00021917,2]
[328524286,1717487432551,-500.0,0.00021917,2]
[328524288,1717487432562,-500.00457061,0.00021917,2]
[328524290,1717487432572,-500.0,0.00021917,2]
[328524292,1717487432582,-512.73545649,0.00021917,2]
[328524294,1717487432590,-500.0,0.00021917,2]
[328524296,1717487432599,-500.0,0.00021917,2]
[328524298,1717487432609,-528.06,0.00021917,2]
[328524300,1717487432619,-500.0,0.00021917,2]
[328524302,1717487432628,-500.0,0.00021917,2]
[328524304,1717487432640,-500.0,0.00021917,2]
[328524306,1717487432652,-163.32753871,0.00021917,2]
[328524309,1717487432665,-500.0,0.00021917,2]
[328524311,1717487432674,-500.0,0.00021917,2]
[328524313,1717487432683,-500.0,0.00021917,2]
[328524315,1717487432693,-500.0,0.00021917,2]
[328524317,1717487432703,-500.0,0.00021917,2]
[328524319,1717487432712,-500.0,0.00021917,2]
[328524321,1717487432721,-500.0,0.00021917,2]
[328524323,1717487432731,-500.0,0.00021917,2]
[328524325,1717487432740,-500.0,0.00021917,2]
[328524327,1717487432750,-500.0,0.00021917,2]
[328524329,1717487432759,-500.0,0.00021917,2]
[328524331,1717487432768,-221.39272305,0.00021917,2]
[328524333,1717487432778,-503.88322232,0.00021917,2]
[328524335,1717487432787,-500.0,0.00021917,2]
[328524337,1717487432797,-500.0,0.00021917,2]
[328524339,1717487432806,-500.0,0.00021917,2]
[328524342,1717487432816,-500.0,0.00021917,2]
[328524344,1717487432826,-500.0,0.00021917,2]
[328524346,1717487432835,-500.0,0.00021917,2]
[328524348,1717487432844,-500.0,0.00021917,2]
[328524350,1717487432854,-500.0,0.00021917,2]
[328524352,1717487432863,-244.85444374,0.00021917,2]
[328524354,1717487432872,-197.12025051,0.00021917,2]
[328524356,1717487432881,-548.02491751,0.00021917,2]
[328524358,1717487432890,-500.0,0.00021917,2]
[328524360,1717487432902,-500.0,0.00021917,2]
[328524362,1717487432911,-500.35580817,0.00021917,2]
[328524363,1717487432920,-500.0,0.00021917,2]
[328524365,1717487432929,-500.0,0.00021917,2]
[328524367,1717487432939,-500.0,0.00021917,2]
[328524369,1717487432948,-500.0,0.00021917,2]
[328524370,1717487432957,-500.0,0.00021917,2]
[328524371,1717487432967,-500.0,0.00021917,2]
[328524372,1717487432976,-163.00052468,0.00021917,2]
[328524373,1717487432985,-500.0,0.00021917,2]
[328524374,1717487432995,-500.66604254,0.00021917,2]
[328524375,1717487433004,-500.0,0.00021917,2]
[328524376,1717487433014,-500.16915387,0.00021917,2]
[328524377,1717487433023,-500.0,0.00021917,2]
[328524378,1717487433038,-500.0,0.00021917,2]
[328524379,1717487433051,-500.16915386,0.00021917,2]
[328524380,1717487433062,-461.51170653,0.00021917,2]
[328524381,1717487433074,-500.0,0.00021917,2]
[328524382,1717487433086,-500.0,0.00021917,2]
[328524383,1717487433099,-504.14115165,0.00021917,2]
[328524384,1717487433111,-583.29,0.00021917,2]
[328524385,1717487433125,-118.48123645,0.00021917,2]
[328524396,1717487438228,-369.91208651,0.000199,2]
[328524397,1717487438240,-154.9690062,0.00020899,2]
[328524398,1717487438250,-381.51876355,0.00021917,2]
[328524399,1717487438261,-475.02,0.00021917,2]
[328524400,1717487438271,-500.0,0.00021917,2]
[328524401,1717487438282,-117.44470373,0.00021917,2]
[328524416,1717487441129,-382.55529627,0.00021917,2]
[328524417,1717487441139,-500.0,0.00021917,2]
[328524418,1717487441149,-500.17441701,0.00021917,2]
[328524419,1717487441159,-530.37979471,0.00021917,2]
[328524420,1717487441169,-500.0,0.00021917,2]
[328524421,1717487441179,-501.16905974,0.00021917,2]
[328524422,1717487441190,-502.84786086,0.00021917,2]
[328524423,1717487441200,-503.24230525,0.00021917,2]
[328524424,1717487441211,-500.0,0.00021917,2]
[328524425,1717487441221,-501.80879146,0.00021917,2]
[328524426,1717487441231,-506.19742962,0.00021917,2]
[328524427,1717487441241,-500.0,0.00021917,2]
[328524429,1717487441251,-294.5,0.00021917,2]
[328524431,1717487441263,-500.0,0.00021917,2]
[328524432,1717487441274,-500.0,0.00021917,2]
[328524433,1717487441287,-504.96442622,0.00021917,2]
[328524434,1717487441298,-501.76035135,0.00021917,2]
[328524435,1717487441308,-62.96283673,0.00021917,2]
[328524436,1717487441325,-294.25716327,0.00021917,2]
[328524437,1717487441337,-500.0,0.00021917,2]
[328524438,1717487441347,-501.58064984,0.00021917,2]
[328524439,1717487441358,-501.77903495,0.00021917,2]
[328524440,1717487441371,-500.0,0.00021917,2]
[328524441,1717487441382,-223.84,0.00021917,2]
[328524442,1717487441392,-500.0,0.00021917,2]
[328524443,1717487441402,-605.19,0.00021917,2]
[328524444,1717487441413,-502.28469033,0.00021917,2]
[328524445,1717487441423,-523.14882469,0.00021917,2]
[328524446,1717487441432,-501.97932635,0.00021917,2]
[328524447,1717487441442,-501.8460748,0.00021917,2]
[328524448,1717487441452,-500.0,0.00021917,2]
[328524449,1717487441462,-500.25317228,0.00021917,2]
[328524450,1717487441472,-256.85834784,0.00021917,2]
[328524451,1717487441482,-500.0,0.00021917,2]
[328524452,1717487441492,-195.73072021,0.00021917,2]
[328524453,1717487441503,-500.0,0.00021917,2]
[328524454,1717487441514,-514.70517393,0.00021917,2]
[328524455,1717487441524,-504.64570651,0.00021917,2]
[328524456,1717487441534,-260.18,0.00021917,2]
[328524457,1717487441690,-406.24781726,0.00021917,2]
[328524458,1717487441703,-500.0,0.00021917,2]
[328524459,1717487441713,-175.20813789,0.00021917,2]
[328524460,1717487441724,-500.0,0.00021917,2]
[328524461,1717487441733,-500.0,0.00021917,2]
[328524462,1717487441742,-500.0,0.00021917,2]
[328524463,1717487441752,-500.0,0.00021917,2]
[328524464,1717487441761,-500.0,0.00021917,2]
[328524465,1717487441770,-500.0,0.00021917,2]
[328524466,1717487441780,-502.97406748,0.00021917,2]
[328524467,1717487441789,-500.44458176,0.00021917,2]
[328524468,1717487441799,-272.03207598,0.00021917,2]
[328524469,1717487441808,-847.7,0.00021917,2]
[328524470,1717487441818,-504.09508861,0.00021917,2]
[328524471,1717487441827,-500.0,0.00021917,2]
[328524472,1717487441836,-500.0,0.00021917,2]
[328524473,1717487441846,-300.0,0.00021917,2]
[328524474,1717487441855,-127.16026916,0.00021917,2]
[328524492,1717487443244,-372.83973084,0.00021917,2]
[328524493,1717487443253,-500.0,0.00021917,2]
[328524494,1717487443262,-672.96,0.00021917,2]
[328524495,1717487443271,-565.53,0.00021917,2]
[328524496,1717487443280,-777.89,0.00021917,2]
[328524497,1717487443289,-500.0,0.00021917,2]
[328524498,1717487443298,-500.0,0.00021917,2]
[328524499,1717487443307,-270.35,0.00021917,2]
[328524500,1717487443316,-500.0,0.00021917,2]
[328524501,1717487443325,-361.79867019,0.00021917,2]
[328524502,1717487443334,-500.0,0.00021917,2]
[328524503,1717487443343,-331.2,0.00021917,2]
[328524504,1717487443352,-500.0,0.00021917,2]
[328524505,1717487443361,-822.8,0.00021917,2]
[328524506,1717487443370,-508.9,0.00021917,2]
[328524507,1717487443379,-500.0,0.00021917,2]
[328524508,1717487443387,-500.0,0.00021917,2]
[328524509,1717487443396,-500.0,0.00021917,2]
[328524510,1717487443405,-500.0,0.00021917,2]
[328524511,1717487443415,-500.0,0.00021917,2]
[328524512,1717487443425,-500.0,0.00021917,2]
[328524513,1717487443433,-541.86,0.00021917,2]
[328524514,1717487443442,-500.0,0.00021917,2]
[328524515,1717487443451,-500.0,0.00021917,2]
[328524516,1717487443460,-500.0,0.00021917,2]
[328524517,1717487443469,-500.0,0.00021917,2]
[328524518,1717487443478,-397.0,0.00021917,2]
[328524519,1717487443487,-500.0,0.00021917,2]
[328524520,1717487443496,-500.0,0.00021917,2]
[328524521,1717487443505,-500.0,0.00021917,2]
[328524522,1717487443514,-500.0,0.00021917,2]
[328524523,1717487443523,-661.94,0.00021917,2]
[328524524,1717487443531,-500.0,0.00021917,2]
[328524525,1717487443540,-611.01,0.00021917,2]
[328524526,1717487443550,-500.0,0.00021917,2]
[328524527,1717487443559,-500.0,0.00021917,2]
[328524528,1717487443568,-500.0,0.00021917,2]
[328524529,1717487443576,-500.0,0.00021917,2]
[328524530,1717487443585,-167.99239963,0.00021917,2]
[328524538,1717487563453,154.9690062,9.999e-05,2]
[328524545,1717487650682,203.74317493,9.9e-05,2]
[328524553,1717488413853,300.0,0.00028,120]
[328524554,1717488415748,685.80898577,9.999e-05,2]
[328524556,1717488435007,328.0,0.00028,120]
[328524557,1717488440169,-1662.38094422,0.00018899,2]
[328524558,1717488440191,-154.95351395,0.00018899,2]
[328524559,1717488440211,-266.9284887,0.000189,2]
[328524560,1717488440232,-1848.6984304,0.00020132,2]
[328524658,1717488638411,-1385.31745352,0.00020128,2]
[328524659,1717488638421,-133.0227539,0.00020129,2]
[328524769,1717488643864,-552.78623187,0.00020129,2]
[328524771,1717488643875,-459.48356523,0.00020132,2]
[328524777,1717488643923,-12383.0433915,0.00020132,2]
[328524779,1717488643932,-23051.3015696,0.00020132,2]
[328524781,1717488643942,-194.93299377,0.00021696,2]
[328524782,1717488643951,-4234.71341694,0.00021722,2]
[328524784,1717488643960,-323.67307567,0.00021816,2]
[328524786,1717488643970,-155.7726151,0.00021915,2]
[328524787,1717488643979,-36113.36107243,0.00021916,2]
[328524788,1717488643988,-500.0,0.00021916,2]
[328524790,1717488643997,-156.58662913,0.00021916,2]
[328524792,1717488644007,-254.07352502,0.00021916,2]
[328524794,1717488644016,-170.37912728,0.00021916,2]
[328524795,1717488644025,-19833.22720452,0.00021917,7]
[328524797,1717488644035,-12913.55094275,0.00021917,7]
[328524799,1717488644045,-502.97248106,0.00021917,2]
[328524801,1717488644054,-11874.39094635,0.00021917,2]
[328524802,1717488644063,-500.0,0.00021917,2]
[328524804,1717488644073,-500.0,0.00021917,2]
[328524806,1717488644082,-500.0,0.00021917,2]
[328524807,1717488644091,-500.0,0.00021917,2]
[328524809,1717488644100,-500.0,0.00021917,2]
[328524811,1717488644110,-646.10521389,0.00021917,2]
[328524813,1717488644120,-500.0,0.00021917,2]
[328524814,1717488644129,-500.0,0.00021917,2]
[328524816,1717488644138,-500.0,0.00021917,2]
[328524818,1717488644147,-500.0,0.00021917,2]
[328524820,1717488644157,-500.0,0.00021917,2]
[328524821,1717488644166,-544.1,0.00021917,2]
[328524823,1717488644175,-500.0,0.00021917,2]
[328524825,1717488644184,-500.66011645,0.00021917,2]
[328524827,1717488644194,-521.96807238,0.00021917,2]
[328524828,1717488644203,-500.0,0.00021917,2]
[328524830,1717488644215,-500.0,0.00021917,2]
[328524832,1717488644224,-500.0,0.00021917,2]
[328524834,1717488644234,-500.0,0.00021917,2]
[328524835,1717488644243,-519.60591639,0.00021917,2]
[328524850,1717488644398,-500.0,0.00021917,2]
[328524852,1717488644410,-500.0,0.00021917,2]
[328524854,1717488644419,-500.0,0.00021917,2]
[328524855,1717488644428,-500.0,0.00021917,2]
[328524857,1717488644437,-500.0,0.00021917,2]
[328524859,1717488644448,-504.8710981,0.00021917,2]
[328524860,1717488644459,-500.0,0.00021917,2]
[328524862,1717488644468,-510.47,0.00021917,2]
[328524864,1717488644477,-503.0977793,0.00021917,2]
[328524866,1717488644488,-512.04,0.00021917,2]
[328524868,1717488644497,-500.0,0.00021917,2]
[328524870,1717488644506,-500.0,0.00021917,2]
[328524872,1717488644515,-500.0,0.00021917,2]
[328524874,1717488644525,-501.8130771,0.00021917,2]
[328524875,1717488644534,-578.14582314,0.00021917,2]
[328524877,1717488644543,-500.90709696,0.00021917,2]
[328524879,1717488644553,-311.21624401,0.00021917,2]
[328524881,1717488644562,-500.0,0.00021917,2]
[328524883,1717488644574,-500.0,0.00021917,2]
[328524885,1717488644584,-1002.31536745,0.00021917,2]
[328524886,1717488644593,-500.0,0.00021917,2]
[328524888,1717488644602,-500.0,0.00021917,2]
[328524890,1717488644612,-500.0,0.00021917,2]
[328524892,1717488644622,-500.0,0.00021917,2]
[328524894,1717488644631,-505.20971583,0.00021917,2]
[328524895,1717488644640,-265.11637637,0.00021917,2]
[328524897,1717488644650,-500.0,0.00021917,2]
[328524899,1717488644661,-500.0,0.00021917,2]
[328524901,1717488644670,-500.0,0.00021917,2]
[328524903,1717488644680,-500.0,0.00021917,2]
[328524905,1717488644689,-500.0,0.00021917,2]
[328524907,1717488644698,-500.45060059,0.00021917,2]
[328524909,1717488644707,-503.69964417,0.00021917,2]
[328524910,1717488644716,-500.0,0.00021917,2]
[328524912,1717488644725,-500.0,0.00021917,2]
[328524914,1717488644734,-501.34077468,0.00021917,2]
[328524915,1717488644744,-500.0,0.00021917,2]
[328524917,1717488644753,-500.0,0.00021917,2]
[328524919,1717488644762,-502.58827126,0.00021917,2]
[328524920,1717488644770,-500.0,0.00021917,2]
[328524922,1717488644780,-500.0,0.00021917,2]
[328524924,1717488644789,-500.0,0.00021917,2]
[328524926,1717488644798,-500.0,0.00021917,2]
[328524927,1717488644807,-500.0,0.00021917,2]
[328524929,1717488644816,-500.0,0.00021917,2]
[328524931,1717488644825,-500.0,0.00021917,2]
[328524933,1717488644834,-500.0,0.00021917,2]
[328524935,1717488644844,-500.0,0.00021917,2]
[328524937,1717488644853,-500.0,0.00021917,2]
[328524938,1717488644863,-500.0,0.00021917,2]
[328524940,1717488644872,-500.0,0.00021917,2]
[328524942,1717488644881,-500.0,0.00021917,2]
[328524944,1717488644890,-185.23855204,0.00021917,2]
[328524946,1717488644900,-500.00722029,0.00021917,2]
[328524948,1717488644909,-607.84,0.00021917,2]
[328524950,1717488644919,-500.0,0.00021917,2]
[328524951,1717488644929,-500.0,0.00021917,2]
[328524953,1717488644938,-500.0,0.00021917,2]
[328524955,1717488644947,-500.0,0.00021917,2]
[328524956,1717488644956,-500.0,0.00021917,2]
[328524958,1717488644965,-500.0,0.00021917,2]
[328524960,1717488644975,-500.0,0.00021917,2]
[328524962,1717488644985,-500.0,0.00021917,2]
[328524964,1717488644994,-505.51683367,0.00021917,2]
[328524966,1717488645003,-500.0,0.00021917,2]
[328524967,1717488645011,-500.0,0.00021917,2]
[328524969,1717488645021,-545.49,0.00021917,2]
[328524971,1717488645030,-500.0,0.00021917,2]
[328524973,1717488645040,-500.0,0.00021917,2]
[328524975,1717488645049,-500.0,0.00021917,2]
[328524977,1717488645058,-500.0,0.00021917,2]
[328524978,1717488645067,-523.92845554,0.00021917,2]
[328524979,1717488645076,-500.0,0.00021917,2]
[328524981,1717488645087,-280.44537934,0.00021917,2]
[328524982,1717488645097,-500.0,0.00021917,2]
[328524984,1717488645106,-537.09566895,0.00021917,2]
[328524985,1717488645115,-500.0,0.00021917,2]
[328524987,1717488645124,-500.0,0.00021917,2]
[328524988,1717488645134,-500.0,0.00021917,2]
[328524990,1717488645143,-500.0,0.00021917,2]
[328524992,1717488645153,-502.097962,0.00021917,2]
[328524994,1717488645164,-500.0,0.00021917,2]
[328524996,1717488645173,-500.0,0.00021917,2]
[328524998,1717488645183,-500.0,0.00021917,2]
[328524999,1717488645192,-500.0,0.00021917,2]
[328525001,1717488645202,-500.0,0.00021917,2]
[328525003,1717488645211,-509.33,0.00021917,2]
[328525005,1717488645222,-500.0,0.00021917,2]
[328525007,1717488645231,-500.0,0.00021917,2]
[328525009,1717488645240,-500.0,0.00021917,2]
[328525011,1717488645250,-500.0,0.00021917,2]
[328525012,1717488645259,-500.0,0.00021917,2]
[328525014,1717488645268,-500.0,0.00021917,2]
[328525016,1717488645277,-503.39496054,0.00021917,2]
[328525018,1717488645286,-503.25875328,0.00021917,2]
[328525020,1717488645294,-512.84904555,0.00021917,2]
[328525022,1717488645303,-500.0,0.00021917,2]
[328525023,1717488645311,-500.0,0.00021917,2]
[328525025,1717488645321,-500.0,0.00021917,2]
[328525027,1717488645330,-500.0,0.00021917,2]
[328525029,1717488645338,-500.0,0.00021917,2]
[328525031,1717488645347,-500.0,0.00021917,2]
[328525033,1717488645356,-500.0,0.00021917,2]
[328525034,1717488645364,-500.0,0.00021917,2]
[328525036,1717488645373,-500.0,0.00021917,2]
[328525038,1717488645383,-200.0,0.00021917,2]
[328525040,1717488645392,-501.82821488,0.00021917,2]
[328525042,1717488645401,-435.72887233,0.00021917,2]
[328525044,1717488645410,-500.0,0.00021917,2]
[328525046,1717488645419,-501.44599379,0.00021917,2]
[328525047,1717488645428,-503.10578133,0.00021917,2]
[328525049,1717488645437,-500.0,0.00021917,2]
[328525051,1717488645451,-500.0,0.00021917,2]
[328525053,1717488645460,-500.0,0.00021917,2]
[328525055,1717488645469,-500.0,0.00021917,2]
[328525057,1717488645479,-500.0,0.00021917,2]
[328525058,1717488645489,-530.15293299,0.00021917,2]
[328525060,1717488645498,-500.0,0.00021917,2]
[328525062,1717488645507,-500.0,0.00021917,2]
[328525064,1717488645516,-500.0,0.00021917,2]
[328525066,1717488645526,-427.76497768,0.00021917,2]
[328525068,1717488645538,-501.88079599,0.00021917,2]
[328525070,1717488645546,-500.0,0.00021917,2]
[328525071,1717488645555,-500.0,0.00021917,2]
[328525073,1717488645564,-502.06906126,0.00021917,2]
[328525075,1717488645574,-502.86570791,0.00021917,2]
[328525077,1717488645582,-500.0,0.00021917,2]
[328525079,1717488645592,-500.0,0.00021917,2]
[328525081,1717488645601,-500.0,0.00021917,2]
[328525082,1717488645610,-500.0,0.00021917,2]
[328525084,1717488645620,-500.0,0.00021917,2]
[328525086,1717488645630,-505.98297104,0.00021917,2]
[328525087,1717488645639,-500.0,0.00021917,2]
[328525089,1717488645648,-616.43,0.00021917,2]
[328525091,1717488645658,-500.0,0.00021917,2]
[328525092,1717488645667,-500.0,0.00021917,2]
[328525094,1717488645676,-500.0,0.00021917,2]
[328525096,1717488645686,-500.0,0.00021917,2]
[328525097,1717488645695,-587.75,0.00021917,2]
[328525099,1717488645705,-512.46270289,0.00021917,2]
[328525101,1717488645714,-500.0,0.00021917,2]
[328525103,1717488645724,-500.0,0.00021917,2]
[328525105,1717488645733,-500.0,0.00021917,2]
[328525106,1717488645743,-551.06765925,0.00021917,2]
[328525108,1717488645753,-500.0,0.00021917,2]
[328525110,1717488645762,-500.0,0.00021917,2]
[328525112,1717488645772,-664.2,0.00021917,2]
[328525114,1717488645781,-500.0,0.00021917,2]
[328525116,1717488645790,-581.54,0.00021917,2]
[328525117,1717488645800,-500.0,0.00021917,2]